bitfinex-derivatives/quotes_BNBF0:USTF0_20250309
["timestamp","ask_amount","ask_price","bid_price","bid_amount"]
[1741529158922,2.215,569.33,568.92,0.29689028]
[1741529159119,2.215,569.33,568.93,0.29689028]
[1741529159320,2.215,569.33,568.92,0.29689028]
[1741529159626,3.657,569.33,568.93,0.29689028]
[1741529159833,3.657,569.33,568.92,0.29689028]
[1741529160028,3.657,569.33,568.93,0.29689028]
[1741529160222,3.657,569.33,568.94,0.29689028]
[1741529160426,3.657,569.33,568.95,0.29689028]
[1741529160727,3.657,569.33,568.96,0.29689028]
[1741529160931,3.657,569.33,568.97,0.29689028]
[1741529161232,3.657,569.33,568.98,0.29689028]
[1741529161431,3.657,569.33,568.99,0.29689028]
[1741529161622,3.272,569.33,569.0,0.29689028]
[1741529161931,2.855,569.33,569.01,0.29689028]
[1741529162124,2.855,569.33,569.02,0.29689028]
[1741529162327,2.855,569.33,568.91,0.35154945]
[1741529162328,2.855,569.33,569.03,0.29689028]
[1741529162534,2.855,569.33,569.04,0.64835942]
[1741529162731,2.855,569.33,569.05,0.64835324]
[1741529162930,2.855,569.33,569.06,0.29689028]
[1741529163230,2.855,569.33,569.05,0.35146296]
[1741529163429,2.855,569.33,569.06,0.29684709]
[1741529166237,2.855,569.33,569.07,0.35145061]
[1741529166434,2.855,569.33,569.08,0.29684709]
[1741529167541,2.855,569.33,569.09,0.35143826]
[1741529167742,2.855,569.33,569.1,0.29684709]
[1741529167934,2.855,569.33,569.11,0.35142591]
[1741529168145,2.855,569.33,569.12,0.29684709]
[1741529168532,2.855,569.33,569.13,0.35141356]
[1741529168733,2.855,569.33,569.14,0.29681508]
[1741529169133,2.855,569.33,569.15,0.35140121]
[1741529169436,2.855,569.33,569.16,0.29681508]
[1741529169835,2.855,569.33,569.17,0.29681508]
[1741529170037,2.855,569.33,569.18,0.29681508]
[1741529170244,2.855,569.33,569.19,0.29681508]
[1741529170446,2.855,569.33,569.16,0.29681508]
[1741529170634,2.855,569.33,569.2,0.29681508]
[1741529170837,2.855,569.33,569.21,0.64817925]
[1741529171041,2.855,569.33,569.22,0.64817307]
[1741529171345,2.855,569.33,568.98,0.30558214]
[1741529171346,2.855,569.33,569.23,0.6481669]
[1741529171541,2.855,569.33,569.24,0.29681508]
[1741529172052,2.356,569.33,569.24,0.29681508]
[1741529172452,2.356,569.33,569.25,0.29695006]
[1741529172648,2.356,569.33,569.24,0.29695006]
[1741529172848,2.356,569.33,569.25,0.29695006]
[1741529173249,2.356,569.33,569.26,0.29695006]
[1741529173552,2.356,569.33,569.27,0.29695006]
[1741529173742,2.356,569.33,569.24,0.29695006]
[1741529173942,2.356,569.33,569.25,0.29695006]
[1741529174352,2.356,569.33,569.26,0.29695006]
[1741529174545,2.356,569.33,569.24,0.29695006]
[1741529175751,1.847,569.33,569.24,0.29695006]
[1741529176853,1.847,569.33,569.23,0.35135182]
[1741529177052,1.847,569.33,569.24,0.29696892]
[1741529177859,1.455,569.33,569.24,0.29696892]
[1741529178357,1.455,569.33,569.23,0.35135182]
[1741529179160,1.455,569.33,569.24,0.29700609]
[1741529180048,1.455,569.33,569.23,0.35135182]
[1741529180464,1.455,569.33,569.24,0.29698329]
[1741529183263,1.455,569.33,569.25,0.29691979]
[1741529183451,1.455,569.33,569.24,0.29691979]
[1741529183650,1.455,569.33,569.25,0.29691979]
[1741529183851,1.455,569.33,569.26,0.29691979]
[1741529184051,1.455,569.33,569.24,0.29691979]
[1741529184256,1.455,569.33,569.25,0.29691979]
[1741529184461,1.455,569.33,569.24,0.29691979]
[1741529184661,1.455,569.33,569.25,0.29691979]
[1741529184959,1.455,569.33,569.26,0.29698753]
[1741529185161,1.455,569.33,569.24,0.29698753]
[1741529185658,1.005,569.33,569.24,0.29698753]
[1741529186255,1.005,569.33,569.23,0.35135182]
[1741529187658,0.522,569.33,569.23,0.35135182]
[1741529188764,0.522,569.33,569.24,0.29700173]
[1741529188959,0.522,569.33,569.23,0.35135182]
[1741529189358,0.522,569.33,569.24,0.29696077]
[1741529192462,0.522,569.33,569.25,0.35133948]
[1741529192656,0.522,569.33,569.26,0.29696077]
[1741529192861,0.522,569.33,569.27,0.35132713]
[1741529193062,0.522,569.33,569.28,0.29696077]
[1741529193262,0.522,569.33,569.29,0.35131479]
[1741529193464,0.522,569.33,569.3,0.29696077]
[1741529193665,0.522,569.33,569.31,0.35130245]
[1741529193863,0.522,569.33,569.32,0.29696077]
[1741529195460,1.431,569.64,569.32,0.29696077]
[1741529195664,1.431,569.64,569.31,0.35130245]
[1741529195859,1.431,569.64,569.33,0.29686098]
[1741529196065,1.431,569.64,569.34,0.29686098]
[1741529196265,1.431,569.64,569.31,0.35130245]
[1741529196266,1.431,569.64,569.32,0.29686098]
[1741529196466,1.431,569.64,569.33,0.29686098]
[1741529196666,1.431,569.64,569.32,0.29686098]
[1741529196878,1.431,569.64,569.33,0.29686098]
[1741529197166,1.431,569.64,569.34,0.29686098]
[1741529197361,1.431,569.64,569.35,0.29686098]
[1741529197566,1.431,569.64,569.31,0.35130245]
[1741529197866,1.431,569.64,569.32,0.29686304]
[1741529201079,1.431,569.64,569.33,0.35129011]
[1741529201266,1.431,569.64,569.34,0.29686304]
[1741529204168,1.431,569.64,569.33,0.35129011]
[1741529209076,1.078,569.65,569.33,0.35129011]
[1741529210971,0.504,569.65,569.33,0.35129011]
[1741529213676,0.493,569.72,569.33,0.35129011]
[1741529214674,0.493,569.72,569.07,0.3055808]
[1741529214873,0.493,569.72,569.08,0.2970108]
[1741529215780,0.493,569.72,569.09,0.2970108]
[1741529215976,0.493,569.72,569.08,0.2970108]
[1741529216183,0.493,569.72,569.09,0.2970108]
[1741529216380,0.493,569.72,569.08,0.2970108]
[1741529216787,0.504,569.71,569.08,0.2970108]
[1741529217380,0.504,569.71,569.09,0.29701348]
[1741529217582,0.504,569.71,569.1,0.29701348]
[1741529217782,0.504,569.71,569.11,0.29701348]
[1741529217986,0.504,569.71,569.12,0.29701348]
[1741529218285,0.53,569.7,569.13,0.29701348]
[1741529218490,0.53,569.7,568.98,0.30563985]
[1741529218688,0.53,569.7,568.99,0.29704789]
[1741529221791,0.53,569.7,568.57,0.29704789]
[1741529221986,0.53,569.7,568.89,0.305711]
[1741529222201,0.53,569.7,568.9,0.29704789]
[1741529222491,0.53,569.7,568.6,0.29704789]
[1741529222688,0.53,569.7,568.91,0.29704789]
[1741529222889,0.53,569.7,568.59,0.3517473]
[1741529223090,0.53,569.7,568.61,0.30569086]
[1741529223290,0.53,569.7,568.62,0.29708834]
[1741529224195,0.53,569.7,568.64,0.35171637]
[1741529224396,0.53,569.7,568.65,0.29708199]
[1741529224596,0.53,569.7,568.66,0.29708199]
[1741529224796,0.53,569.7,568.67,0.29708199]
[1741529224994,0.53,569.7,568.68,0.29708199]
[1741529225197,0.53,569.7,568.7,0.35167926]
[1741529225395,0.53,569.7,568.71,0.29708199]
[1741529225591,0.53,569.7,568.72,0.29708199]
[1741529225794,0.53,569.7,568.74,0.35165453]
[1741529225994,0.53,569.7,568.75,0.29695753]
[1741529226194,0.53,569.7,568.76,0.29695753]
[1741529226392,0.53,569.7,568.77,0.29695753]
[1741529226590,0.53,569.7,568.78,0.29695753]
[1741529226792,0.53,569.7,568.75,0.29695753]
[1741529226998,0.53,569.7,568.76,0.29695753]
[1741529227197,0.932,569.7,568.77,0.29695753]
[1741529227394,0.932,569.7,568.82,1.29433963]
[1741529227596,0.932,569.7,568.83,0.64855642]
[1741529227796,0.932,569.7,568.84,0.64855024]
[1741529227997,0.932,569.7,568.85,0.35158653]
[1741529228199,0.932,569.7,568.85,0.64854406]
[1741529228398,1.567,569.7,568.86,0.29695753]
[1741529228694,1.567,569.7,568.87,0.35157417]
[1741529228899,1.567,569.7,568.88,0.29695753]
[1741529229098,1.567,569.7,568.89,0.35156181]
[1741529229298,1.567,569.7,568.9,0.29695753]
[1741529229599,1.567,569.7,568.91,0.35154945]
[1741529229799,1.567,569.7,568.92,0.29695753]
[1741529230503,1.567,569.7,568.93,0.35153709]
[1741529230710,1.567,569.7,568.94,0.29695753]
[1741529231004,2.734,569.7,568.94,0.29695753]
[1741529234401,2.734,569.7,568.95,0.29695753]
[1741529234709,2.734,569.7,568.96,0.29695753]
[1741529234917,2.734,569.7,568.97,0.29695753]
[1741529235413,2.734,569.7,568.93,0.35153709]
[1741529235414,2.734,569.7,568.98,0.29695753]
[1741529235707,2.734,569.7,568.95,1.29433963]
[1741529235708,2.734,569.7,568.99,0.29695753]
[1741529235905,2.734,569.7,569.0,0.29695753]
[1741529236107,2.734,569.7,569.01,0.29695753]
[1741529236412,3.373,569.7,569.02,0.29695753]
[1741529236611,3.373,569.7,568.95,1.29433963]
[1741529236612,3.373,569.7,569.03,0.29695753]
[1741529236804,3.373,569.7,568.95,1.29433963]
[1741529237001,3.373,569.7,568.96,0.29671465]
[1741529237203,3.373,569.7,568.97,0.29671465]
[1741529237402,3.373,569.7,568.98,0.29671465]
[1741529237602,3.373,569.7,569.23,1.29433963]
[1741529237807,3.373,569.7,569.24,0.29671465]
[1741529238115,3.373,569.7,569.25,0.29671465]
[1741529238308,3.373,569.7,569.24,0.29671465]
[1741529238612,3.373,569.7,569.23,1.29433963]
[1741529238807,3.373,569.7,569.24,0.29673608]
[1741529239807,3.893,569.7,569.04,0.29673608]
[1741529240107,3.893,569.7,569.05,0.29673608]
[1741529240305,3.893,569.7,569.04,0.29673608]
[1741529240506,3.893,569.7,569.05,0.29673608]
[1741529240703,3.893,569.7,569.04,0.29673608]
[1741529240901,3.893,569.7,569.05,0.29673608]
[1741529241207,3.893,569.7,569.06,0.29673608]
[1741529241508,3.893,569.7,569.07,0.29673608]
[1741529241707,3.893,569.7,569.08,0.29673608]
[1741529241903,3.893,569.7,569.03,1.29433963]
[1741529241904,3.893,569.7,569.09,0.29673608]
[1741529242103,3.893,569.7,569.1,0.29673608]
[1741529242304,3.893,569.7,569.04,0.29673608]
[1741529242511,3.893,569.7,569.05,0.29673608]
[1741529242707,3.893,569.7,569.04,0.29673608]
[1741529242905,3.893,569.7,569.05,0.29673608]
[1741529243210,3.893,569.7,569.06,0.29673608]
[1741529243510,3.893,569.7,569.07,0.29673608]
[1741529243708,3.893,569.7,569.08,0.29673608]
[1741529243911,3.893,569.7,569.01,0.30543195]
[1741529244110,3.893,569.7,569.02,0.29672799]
[1741529244710,3.893,569.7,569.03,0.29672799]
[1741529244909,3.893,569.7,569.04,0.29672799]
[1741529245110,4.334,569.7,569.05,0.29672799]
[1741529245310,4.334,569.7,569.02,0.29672799]
[1741529245504,4.791,569.7,569.03,0.29672799]
[1741529245704,4.791,569.7,569.04,0.29672799]
[1741529245907,4.791,569.7,569.05,0.29672799]
[1741529246104,4.791,569.7,569.06,0.29673374]
[1741529246312,4.791,569.7,569.07,0.29673374]
[1741529246514,4.791,569.7,569.08,0.29673374]
[1741529246712,4.791,569.7,569.09,0.29673374]
[1741529246913,4.791,569.7,569.1,0.29673374]
[1741529247213,4.791,569.7,569.11,0.64815965]
[1741529247413,4.791,569.7,569.12,0.29673374]
[1741529247609,4.791,569.7,569.13,0.29673374]
[1741529247811,4.791,569.7,569.14,0.35140738]
[1741529248012,4.791,569.7,569.15,0.29673374]
[1741529248212,4.791,569.7,569.16,0.29673374]
[1741529248407,5.26,569.7,569.17,0.6481226]
[1741529248610,5.26,569.7,569.18,0.29673374]
[1741529248815,5.26,569.7,569.19,0.29673374]
[1741529249114,5.26,569.7,569.2,0.29673374]
[1741529249313,5.26,569.7,569.21,0.29673374]
[1741529249813,5.26,569.7,569.22,0.29673374]
[1741529250014,5.26,569.7,569.18,0.29673374]
[1741529250214,5.26,569.7,569.19,0.64811025]
[1741529250413,5.26,569.7,569.2,0.64810408]
[1741529250609,5.26,569.7,569.21,0.29673374]
[1741529250815,5.26,569.7,569.22,0.35135799]
[1741529251009,5.26,569.7,569.23,0.29673374]
[1741529251409,5.26,569.7,569.24,0.35134565]
[1741529251613,5.26,569.7,569.25,0.29673374]
[1741529251912,5.26,569.7,569.26,0.29673374]
[1741529252216,5.26,569.7,569.27,0.29673374]
[1741529252418,5.26,569.7,569.28,0.35132096]
[1741529252616,5.26,569.7,569.29,0.29673374]
[1741529253009,5.26,569.7,569.3,0.35130862]
[1741529253317,3.076,569.7,569.31,0.29673374]
[1741529253518,3.076,569.7,569.32,0.35129628]
[1741529253811,3.076,569.7,569.33,0.29673374]
[1741529254212,3.076,569.7,569.34,0.35128394]
[1741529254518,2.441,569.7,569.35,0.29673374]
[1741529254718,2.441,569.7,569.36,0.3512716]
[1741529254916,2.441,569.7,569.37,0.29673374]
[1741529255117,2.441,569.7,569.36,0.3512716]
[1741529255118,2.441,569.7,569.38,0.64803045]
[1741529255309,2.441,569.7,569.39,0.64802428]
[1741529255514,2.441,569.7,569.4,0.64801811]
[1741529255715,2.441,569.7,569.41,0.64801194]
[1741529255917,1.887,569.7,569.42,0.29677119]
[1741529258521,1.887,569.7,569.43,0.35122842]
[1741529258720,1.887,569.7,569.44,0.29677119]
[1741529259620,1.887,569.7,569.45,0.35121608]
[1741529259820,1.887,569.7,569.46,0.29677119]
[1741529260414,1.887,569.7,569.47,0.35120375]
[1741529260618,1.887,569.7,569.48,0.29671269]
[1741529260814,1.887,569.7,569.49,0.35119141]
[1741529261120,1.887,569.7,569.5,0.29671269]
[1741529261320,1.887,569.7,569.51,0.35117908]
[1741529261519,1.887,569.7,569.52,0.29671269]
[1741529262119,1.446,569.7,569.53,0.35116675]
[1741529262416,1.446,569.7,569.54,0.29671269]
[1741529262620,1.446,569.7,569.55,0.35115442]
[1741529262821,1.446,569.7,569.56,0.29671269]
[1741529263122,1.446,569.7,569.57,0.35114208]
[1741529263318,1.446,569.7,569.58,0.29671269]
[1741529263523,1.446,569.7,569.57,0.35114208]
[1741529263820,0.926,569.7,569.57,0.35114208]
[1741529264416,0.926,569.7,569.58,0.29671321]
[1741529264814,0.926,569.7,569.58,0.64784913]
[1741529265020,0.926,569.7,569.59,0.29671321]
[1741529265221,0.926,569.7,569.58,0.35113592]
[1741529266424,0.457,569.7,569.58,0.35113592]
[1741529266621,0.457,569.7,569.59,0.2967145]
[1741529267019,0.457,569.7,569.58,0.35113592]
[1741529269925,0.457,569.7,569.59,0.29677362]
[1741529271124,0.457,569.7,569.58,0.35113592]
[1741529271522,0.457,569.7,569.59,0.29680886]
[1741529271926,0.457,569.7,569.58,0.35113592]
[1741529272628,1.341,569.83,569.58,0.35113592]
[1741529273523,0.872,569.83,569.58,0.35113592]
[1741529274129,0.872,569.83,569.31,1.29433963]
[1741529274428,0.872,569.83,569.33,0.30546144]
[1741529275728,1.311,569.83,569.33,0.30546144]
[1741529275930,1.311,569.83,569.34,0.29687293]
[1741529276128,1.311,569.83,569.33,0.30546144]
[1741529276727,1.884,569.83,569.33,0.30546144]
[1741529280733,1.884,569.83,569.34,0.29688769]
[1741529281733,1.884,569.83,569.33,0.30546144]
[1741529281935,1.884,569.83,569.35,0.29687537]
[1741529282235,1.884,569.83,569.36,0.29687537]
[1741529282632,1.884,569.83,569.37,0.35126543]
[1741529282831,1.884,569.83,569.38,0.29687537]
[1741529283030,1.884,569.83,569.39,0.35125309]
[1741529283335,1.884,569.83,569.4,0.29687537]
[1741529283637,1.884,569.83,569.41,0.35124075]
[1741529283834,1.884,569.83,569.42,0.29687537]
[1741529284037,1.884,569.83,569.42,0.64810995]
[1741529284237,1.884,569.83,569.43,0.29687537]
[1741529284537,1.012,569.83,569.44,0.35122225]
[1741529284737,1.012,569.83,569.45,0.29687537]
[1741529285035,1.012,569.83,569.46,0.35120991]
[1741529285235,1.012,569.83,569.47,0.29687537]
[1741529285430,1.012,569.83,569.48,0.35119758]
[1741529285736,1.012,569.83,569.49,0.29687537]
[1741529287637,1.012,569.83,569.5,0.35118525]
[1741529287835,1.012,569.83,569.51,0.29687537]
[1741529288137,1.012,569.83,569.52,0.35117291]
[1741529288333,1.012,569.83,569.53,0.29687537]
[1741529288735,0.573,569.83,569.53,0.29687537]
[1741529288934,0.573,569.83,569.54,0.35116058]
[1741529289339,0.573,569.83,569.55,0.2966845]
[1741529289637,0.573,569.83,569.56,0.35114825]
[1741529289838,0.573,569.83,569.57,0.2966209]
[1741529290038,0.573,569.83,569.58,0.35113592]
[1741529290240,0.573,569.83,569.59,0.2966209]
[1741529290439,0.573,569.83,569.6,0.35112359]
[1741529290639,0.573,569.83,569.61,0.2966209]
[1741529290839,0.573,569.83,569.62,0.35111126]
[1741529291034,0.573,569.83,569.63,0.2966209]
[1741529291341,0.573,569.83,569.64,0.35109893]
[1741529292140,0.573,569.83,569.65,0.29666245]
[1741529292339,0.573,569.83,569.66,0.35108661]
[1741529292535,0.573,569.83,569.67,0.29666245]
[1741529292740,0.573,569.83,569.68,0.35107428]
[1741529293141,0.573,569.83,569.69,0.29666245]
[1741529293443,0.573,569.83,569.7,0.35106196]
[1741529293641,0.573,569.83,569.71,0.29666245]
[1741529293836,0.573,569.83,569.72,0.35104963]
[1741529294038,0.573,569.83,569.73,0.29666245]
[1741529295237,0.573,569.83,569.74,0.35103731]
[1741529295440,0.573,569.83,569.75,0.29666245]
[1741529296537,0.573,569.83,569.76,0.35102499]
[1741529296742,0.573,569.83,569.77,0.29666245]
[1741529299839,0.573,569.83,569.76,0.35102499]
[1741529304747,1.137,569.9,569.76,0.35102499]
[1741529305045,1.137,569.9,569.44,0.30549496]
[1741529305242,1.137,569.9,569.45,0.64799924]
[1741529305445,1.137,569.9,569.46,0.64799307]
[1741529305748,1.137,569.9,569.47,0.64797919]
[1741529306046,1.137,569.9,569.48,0.64797302]
[1741529306242,1.137,569.9,569.49,0.29677544]
[1741529306449,0.524,569.89,569.49,0.29677544]
[1741529313457,0.524,569.89,569.48,0.35119758]
[1741529314157,1.091,569.89,569.48,0.35119758]
[1741529314558,1.595,569.89,569.48,0.35119758]
[1741529316158,1.595,569.89,568.97,1.29433963]
[1741529316362,1.595,569.89,569.24,0.3054896]
[1741529316563,1.595,569.89,569.25,0.29693839]
[1741529316757,1.595,569.89,569.24,0.30553519]
[1741529316963,0.465,569.88,569.25,0.29693839]
[1741529317864,0.465,569.88,569.0,0.29694021]
[1741529318066,0.465,569.88,569.24,0.30553519]
[1741529318265,0.465,569.88,569.25,0.29693296]
[1741529318566,0.465,569.88,569.26,0.29693296]
[1741529318768,0.465,569.88,569.27,0.29693296]
[1741529318966,0.465,569.88,569.28,0.29693296]
[1741529319166,0.465,569.88,569.0,0.29693296]
[1741529319469,0.465,569.88,569.26,0.305503]
[1741529319668,0.465,569.88,569.27,0.64826009]
[1741529319863,0.465,569.88,569.28,0.29690169]
[1741529320864,0.658,569.87,569.28,0.29690169]
[1741529321872,0.658,569.87,569.29,0.29690337]
[1741529322066,0.658,569.87,569.27,0.35132713]
[1741529322067,0.658,569.87,569.28,0.29690337]
[1741529322272,0.658,569.87,569.29,0.29690337]
[1741529322473,0.658,569.87,569.28,0.29690337]
[1741529322774,0.658,569.87,569.29,0.29690337]
[1741529322971,0.658,569.87,569.28,0.29690337]
[1741529323172,0.658,569.87,569.29,0.29690337]
[1741529323371,0.658,569.87,569.28,0.29690337]
[1741529323568,0.658,569.87,569.29,0.29690337]
[1741529323873,0.658,569.87,569.27,0.35132713]
[1741529325770,0.489,569.86,569.27,0.35132713]
[1741529325970,0.957,569.86,569.27,0.35132713]
[1741529329070,0.957,569.86,568.5,1.29433963]
[1741529329271,0.957,569.86,569.02,0.30558751]
[1741529329469,0.957,569.86,569.03,0.29703333]
[1741529329870,0.957,569.86,568.53,0.29703333]
[1741529330075,0.957,569.86,568.55,0.35177205]
[1741529330375,0.957,569.86,568.56,0.29703333]
[1741529330575,0.957,569.86,568.58,0.35175349]
[1741529330776,0.957,569.86,568.59,0.29703333]
[1741529331077,0.957,569.86,568.61,0.35173493]
[1741529331276,0.957,569.86,568.62,0.29703333]
[1741529331477,0.602,569.85,568.63,0.29703333]
[1741529331776,0.602,569.85,568.64,0.29703333]
[1741529331978,0.602,569.85,568.65,0.29703333]
[1741529332271,0.602,569.85,568.66,0.29703333]
[1741529332478,0.602,569.85,568.67,0.29703333]
[1741529332675,0.602,569.85,568.68,0.29703333]
[1741529332874,0.602,569.85,568.7,0.35167926]
[1741529333075,0.602,569.85,568.71,0.29703333]
[1741529333275,0.602,569.85,568.72,0.29703333]
[1741529333477,0.54,569.84,568.73,0.29703333]
[1741529333675,0.54,569.84,568.74,0.29703333]
[1741529333975,0.54,569.84,568.76,0.35164216]
[1741529334378,0.54,569.84,568.77,0.29703333]
[1741529334677,0.54,569.84,568.79,0.35162362]
[1741529334876,0.54,569.84,568.8,0.29703333]
[1741529335072,0.54,569.84,568.81,0.29703333]
[1741529335276,0.54,569.84,568.82,0.29703333]
[1741529335477,0.54,569.84,568.83,0.29703333]
[1741529335675,0.54,569.84,568.84,0.29703333]
[1741529335879,0.54,569.84,568.85,0.35158653]
[1741529336279,0.54,569.84,568.86,0.29690874]
[1741529336578,0.54,569.84,568.88,0.35156799]
[1741529336774,0.54,569.84,568.89,0.29690874]
[1741529336980,0.54,569.84,568.9,0.2969128]
[1741529337178,0.495,569.83,568.92,0.35154327]
[1741529337373,0.495,569.83,568.93,0.2969128]
[1741529337572,0.495,569.83,568.95,0.35152473]
[1741529337879,0.495,569.83,568.96,0.2969128]
[1741529338080,0.495,569.83,568.98,0.3515062]
[1741529338281,0.495,569.83,568.99,0.2969128]
[1741529338479,0.495,569.83,569.01,0.35148767]
[1741529338681,0.495,569.83,569.02,0.2969128]
[1741529339181,0.495,569.83,569.04,0.35146914]
[1741529339379,1.103,569.83,569.05,0.2969128]
[1741529339581,1.103,569.83,569.06,0.35145678]
[1741529339776,1.103,569.83,569.07,0.2969128]
[1741529339975,1.103,569.83,569.08,0.35144443]
[1741529340184,1.103,569.83,569.09,0.2969128]
[1741529340482,1.103,569.83,569.1,0.35143208]
[1741529340682,1.103,569.83,569.11,0.2969128]
[1741529340878,1.103,569.83,569.12,0.35141973]
[1741529341074,1.103,569.83,569.13,0.2969128]
[1741529341274,1.103,569.83,569.14,0.35140738]
[1741529341482,1.103,569.83,569.15,0.2969128]
[1741529341982,2.371,569.83,569.16,0.35139503]
[1741529342282,2.371,569.83,569.17,0.2969128]
[1741529342476,2.371,569.83,569.18,0.35138269]
[1741529342680,2.371,569.83,569.19,0.2969128]
[1741529343783,2.371,569.83,569.2,0.35137034]
[1741529343979,2.371,569.83,569.21,0.2969128]
[1741529346089,2.371,569.83,569.22,0.35135799]
[1741529346386,2.81,569.83,569.22,0.35135799]
[1741529346685,2.81,569.83,569.23,0.29683086]
[1741529347080,3.429,569.83,569.24,0.35134565]
[1741529347282,3.429,569.83,569.25,0.29683086]
[1741529347481,3.429,569.83,569.26,0.3513333]
[1741529347682,3.429,569.83,569.27,0.29683086]
[1741529347885,3.429,569.83,569.28,0.35132096]
[1741529348089,3.429,569.83,569.29,0.29683086]
[1741529348289,3.429,569.83,569.3,0.35130862]
[1741529348489,3.429,569.83,569.31,0.29683086]
[1741529348689,3.429,569.83,569.31,0.64813331]
[1741529348884,3.429,569.83,569.32,0.64812714]
[1741529349085,3.429,569.83,569.33,0.64812097]
[1741529349390,3.429,569.83,569.34,0.29683086]
[1741529349981,3.429,569.83,569.33,0.35129011]
[1741529350184,3.884,569.83,569.34,0.29687755]
[1741529350388,3.884,569.83,569.34,0.64816149]
[1741529350587,3.884,569.83,569.35,0.29687755]
[1741529351584,4.404,569.83,569.35,0.29687755]
[1741529351787,4.404,569.83,569.34,0.35128394]
[1741529351991,4.404,569.83,569.35,0.29687365]
[1741529355994,4.928,569.83,569.35,0.29687365]
[1741529358496,5.479,569.83,569.35,0.29687365]
[1741529358892,5.479,569.83,569.34,0.35128394]
[1741529379725,5.479,569.83,569.35,0.29692045]
[1741529383925,5.479,569.83,569.35,0.64819822]
[1741529384132,5.479,569.83,569.36,0.29692045]
[1741529384429,5.479,569.83,569.37,0.29682923]
[1741529384733,5.479,569.83,569.35,0.35127777]
[1741529384734,5.479,569.83,569.38,0.29682923]
[1741529384934,5.479,569.83,569.39,0.29682923]
[1741529385131,5.479,569.83,569.36,0.29682923]
[1741529386437,5.479,569.83,569.37,0.29684137]
[1741529386636,5.479,569.83,569.36,0.29684137]
[1741529386935,5.479,569.83,569.37,0.6481068]
[1741529387133,5.479,569.83,569.38,0.64810063]
[1741529387334,5.479,569.83,569.39,0.64809446]
[1741529387535,5.479,569.83,569.4,0.64808829]
[1741529387735,5.479,569.83,569.41,0.35124075]
[1741529387941,5.479,569.83,569.42,0.29684137]
[1741529388337,5.479,569.83,569.42,0.64807595]
[1741529388639,5.479,569.83,569.43,0.29684137]
[1741529388838,1.484,569.83,569.43,0.29684137]
[1741529389034,0.30541855,570.39,569.43,0.29684137]
[1741529389637,1.29047815,570.93,569.43,0.29684137]
[1741529389838,0.35031791,570.91,569.43,0.29684137]
[1741529390037,0.32236539,570.9,569.43,0.29684137]
[1741529390238,1.29047815,570.82,569.43,0.29684137]
[1741529390435,0.67274467,570.81,569.43,0.29684137]
[1741529390641,0.35038542,570.8,569.44,0.35122225]
[1741529390942,0.32236539,570.79,569.45,0.29684137]
[1741529391141,0.3503977,570.78,569.45,0.64805745]
[1741529391341,0.32236539,570.77,569.46,0.29684137]
[1741529391637,0.35040997,570.76,569.46,0.29684137]
[1741529391857,0.32236539,570.75,569.46,0.29684137]
[1741529392141,2.10142225,570.74,569.46,0.29684137]
[1741529392334,0.67279378,570.73,569.46,0.29684137]
[1741529392535,0.67279992,570.72,569.46,0.29684137]
[1741529392741,0.67280606,570.71,569.46,0.29684137]
[1741529392941,0.32236539,570.7,569.46,0.29684137]
[1741529393435,0.35045296,570.69,569.46,0.29684137]
[1741529393635,0.32236539,570.68,569.46,0.29684137]
[1741529394241,0.35046524,570.67,569.46,0.29684137]
[1741529394442,0.32236539,570.66,569.46,0.29684137]
[1741529394644,0.35047752,570.65,569.46,0.29684137]